bitfinex-derivatives/quotes_ETHF0:USTF0_20250923
["timestamp","ask_amount","ask_price","bid_price","bid_amount"]
[1758659577563,0.7578,4155.6,4155.5,0.64104]
[1758659577768,0.7578,4155.6,4155.5,1.17604]
[1758659578563,1.19074,4155.6,4155.5,1.17604]
[1758659578873,1.19076,4155.4,4155.3,0.43297]
[1758659579069,0.7578,4155.4,4155.3,1.17607]
[1758659579369,0.7578,4155.9,4155.8,1.17602]
[1758659579570,1.54033939,4155.9,4155.8,1.17602]
[1758659579865,1.0008,4155.9,4155.8,1.17602]
[1758659580073,3.5409,4156.1,4156.0,0.4329]
[1758659580269,3.5409,4156.1,4156.0,1.3039]
[1758659580270,4.54219327,4156.1,4156.0,1.3039]
[1758659580869,5.18108327,4156.1,4156.0,1.176]
[1758659581165,4.74819327,4156.1,4156.0,0.4329]
[1758659581468,0.4247,4155.6,4155.5,0.85275]
[1758659581669,0.7578,4155.6,4155.5,1.30395]
[1758659581870,0.7578,4155.9,4155.8,1.17602]
[1758659582468,0.4247,4155.5,4155.4,0.2081]
[1758659582770,0.7578,4155.0,4154.9,0.96441]
[1758659583268,0.2187,4155.0,4154.9,1.17611]
[1758659583473,0.7578,4155.3,4155.2,0.85278]
[1758659583675,0.7578,4155.3,4155.2,1.17608]
[1758659584078,0.2187,4155.1,4155.0,0.3233]
[1758659584270,0.1241,4155.5,4154.8,4.17222]
[1758659584271,0.4247,4154.9,4154.8,4.17222]
[1758659584463,0.4247,4154.7,4154.6,0.64114]
[1758659584773,0.7578,4154.7,4154.6,0.96444]
[1758659584973,0.7578,4154.7,4154.6,1.17614]
[1758659585173,0.5518,4155.0,4154.9,0.4198]
[1758659585371,0.7578,4155.0,4154.9,1.17611]
[1758659586271,0.7578,4154.7,4154.4,0.3233]
[1758659586577,0.7578,4154.7,4154.6,0.43304]
[1758659586773,1.19084,4154.6,4154.3,0.75637]
[1758659587076,0.7578,4154.4,4154.3,0.75637]
[1758659587977,0.76617,4154.3,4154.2,0.43307]
[1758659588179,0.7578,4154.3,4154.2,0.96447]
[1758659588474,0.7578,4154.3,4154.2,1.17617]
[1758659588772,0.2187,4153.8,4153.7,3.4159]
[1758659588966,0.7578,4153.8,4153.7,4.06074]
[1758659589477,0.7578,4153.8,4153.7,4.38404]
[1758659589977,0.4247,4153.8,4153.7,4.38404]
[1758659590172,0.243,4154.4,4154.3,0.43307]
[1758659590380,0.65177,4154.3,4154.2,0.75638]
[1758659590676,0.4247,4154.3,4154.2,0.96448]
[1758659590975,0.7578,4154.3,4154.2,0.96448]
[1758659591378,1.19087,4154.3,4154.2,0.96448]
[1758659592082,0.7578,4154.3,4154.2,0.96448]
[1758659592573,3.4179,4154.6,4154.5,1.28525]
[1758659592976,3.7471,4154.6,4154.5,1.28525]
[1758659593178,3.9656,4154.6,4154.5,1.28525]
[1758659594471,3.9656,4154.6,4154.5,1.16145]
[1758659594979,3.2078,4154.6,4154.5,1.28525]
[1758659597578,3.4179,4154.6,4154.5,1.28525]
[1758659597785,3.9656,4154.6,4154.5,1.28525]
[1758659598185,3.9656,4154.6,4154.5,0.43305]
[1758659598383,4.39864,4154.6,4154.5,0.43305]
[1758659598586,4.64164,4154.6,4154.5,0.43305]
[1758659599186,0.7578,4154.1,4154.0,0.94741]
[1758659599580,0.8875,4154.0,4153.9,0.43312]
[1758659599779,0.8875,4154.0,4153.9,0.94742]
[1758659600685,0.7578,4154.4,4154.3,1.16147]
[1758659600990,0.7578,4154.4,4154.1,0.3088]
[1758659600991,1.43486,4154.4,4154.1,0.3088]
[1758659601284,0.7578,4154.3,4154.2,0.43308]
[1758659601581,0.86172,4153.9,4153.8,0.94743]
[1758659601781,0.7578,4153.9,4153.8,0.63863]
[1758659601981,0.4286,4152.7,4152.6,0.3088]
[1758659602179,0.7578,4152.4,4152.3,3.2078]
[1758659602379,1.43507,4152.4,4152.0,0.43331]
[1758659602689,0.7578,4152.1,4152.0,0.2055]
[1758659602882,0.4286,4151.9,4151.8,3.84663]
[1758659603084,0.7578,4151.9,4151.8,3.2078]
[1758659603490,0.7578,4151.9,4151.8,3.4154]
[1758659603890,0.7578,4151.9,4151.8,3.7317]
[1758659604782,0.7578,4151.9,4151.8,0.7293]
[1758659604992,3.2078,4152.1,4152.0,0.1244]
[1758659605290,3.9741,4152.7,4152.6,0.5239]
[1758659605491,0.2205,4152.5,4152.4,0.3163]
[1758659605694,0.7663,4152.2,4152.1,0.5239]
[1758659605892,0.7663,4152.2,4152.1,1.1626]
[1758659607792,0.4445,4152.2,4152.1,1.1626]
[1758659608092,0.2205,4152.2,4152.1,1.1626]
[1758659611495,0.2205,4152.5,4152.4,1.16257]
[1758659611800,0.7863,4152.5,4152.4,1.16257]
[1758659612000,1.0103,4152.5,4152.4,1.16257]
[1758659612391,0.4445,4152.5,4152.4,1.16257]
[1758659612700,3.2078,4152.7,4152.6,1.16255]
[1758659613195,0.4445,4153.2,4153.1,1.1625]
[1758659613395,0.5423,4153.5,4153.4,1.16247]
[1758659613602,0.97897,4153.3,4153.2,0.2076]
[1758659613793,1.19947,4153.3,4153.2,0.64078]
[1758659614394,1.19947,4153.3,4153.2,0.95628]
[1758659614800,0.7663,4153.3,4153.2,0.95628]
[1758659615201,0.4445,4153.3,4153.2,1.16168]
[1758659615701,0.7663,4153.3,4153.2,1.16168]
[1758659617998,0.4445,4153.3,4152.7,0.3163]
[1758659618192,0.7663,4152.8,4152.7,1.16253]
[1758659618591,0.7663,4152.8,4152.7,0.64083]
[1758659619794,0.7663,4152.8,4152.5,0.43326]
[1758659619795,1.19953,4152.8,4152.5,0.43326]
[1758659620001,0.7663,4152.7,4152.6,0.43325]
[1758659620305,0.7663,4152.7,4152.6,0.64085]
[1758659621007,1.19954,4152.7,4152.6,0.64085]
[1758659621198,1.19954,4152.7,4152.6,0.2076]
[1758659621403,1.19954,4152.7,4152.6,0.43325]
[1758659621802,3.2078,4152.9,4152.8,0.43323]
[1758659622005,3.86152,4152.9,4152.8,0.95713]
[1758659622199,4.08552,4152.9,4152.8,0.2076]
[1758659622505,0.7663,4152.3,4152.2,1.16258]
[1758659622707,4.40738,4152.3,4152.2,0.2076]
[1758659623002,1.19961,4152.0,4151.9,0.5239]
[1758659623202,1.19961,4152.0,4151.9,0.95722]
[1758659623507,1.57631,4152.0,4151.9,0.2076]
[1758659623805,0.7663,4151.8,4151.7,4.16504]
[1758659624002,0.7663,4151.8,4151.7,4.37044]
[1758659624705,0.7663,4151.8,4151.7,0.2076]
[1758659624900,1.19963,4151.8,4151.7,0.64094]
[1758659625099,0.7663,4151.8,4151.7,0.64094]
[1758659625303,0.7663,4151.8,4151.7,0.95724]
[1758659625608,0.3767,4152.0,4151.5,0.2076]
[1758659625609,1.19965,4151.6,4151.5,0.2076]
[1758659625809,1.19965,4151.6,4151.5,0.64096]
[1758659626009,1.44365,4151.6,4151.5,0.64096]
[1758659626211,1.44365,4151.6,4151.5,0.95726]
[1758659627011,1.0103,4151.6,4151.5,1.16266]
[1758659627813,0.6885,4151.6,4151.5,1.28706]
[1758659628003,0.4645,4151.6,4151.5,1.28706]
[1758659628516,1.44365,4151.6,4151.5,1.28706]
[1758659629012,1.44365,4151.6,4151.5,1.28546]
[1758659629608,1.44365,4151.6,4151.5,0.8521]
[1758659629911,1.44365,4151.6,4151.5,1.16106]
[1758659630110,1.19965,4151.6,4151.5,1.16106]
[1758659630905,1.19965,4151.6,4151.5,0.7277]
[1758659631105,0.43378488,4151.7,4151.2,0.2076]
[1758659631106,1.19968,4151.3,4151.2,0.2076]
[1758659631309,0.7663,4151.2,4151.1,3.4154]
[1758659631611,0.7663,4151.2,4151.1,4.3705]
[1758659632811,5.97726373,4151.8,4151.7,1.16264]
[1758659633007,6.08581628,4151.8,4151.7,1.16264]
[1758659633313,6.32981628,4151.8,4151.7,1.16264]
[1758659633715,6.64991628,4151.8,4151.7,1.16264]
[1758659634408,4.51428255,4151.8,4151.7,1.16264]
[1758659634708,1.23036659,4151.8,4151.7,1.16264]
[1758659634913,1.55046659,4151.8,4151.7,1.16264]
[1758659635111,1.98379659,4151.8,4151.7,1.16264]
[1758659635311,1.0086,4151.8,4151.7,1.16264]
[1758659635609,0.43335,4151.6,4151.1,3.2078]
[1758659635807,0.97456,4151.5,4151.4,0.43337]
[1758659636217,1.1053,4151.5,4151.4,0.43337]
[1758659636408,0.9763,4151.5,4151.4,1.16287]
[1758659637511,0.75347,4151.4,4151.1,3.2078]
[1758659637716,0.7323,4151.2,4151.1,0.6377]
[1758659638019,0.7323,4151.2,4151.1,1.1629]
[1758659639421,0.7323,4151.2,4151.1,0.7295]
[1758659639719,0.75351,4151.1,4150.8,0.3125]
[1758659640018,0.7323,4150.9,4150.8,1.16293]
[1758659640715,0.7323,4151.3,4151.2,1.16289]
[1758659641111,0.7323,4151.3,4151.2,0.2043]
[1758659641311,1.16568,4151.3,4151.2,0.63769]
[1758659641512,1.16568,4151.3,4151.2,0.95019]
[1758659641713,1.16568,4151.3,4151.2,1.16289]
[1758659642512,0.7323,4151.3,4151.2,1.16289]
[1758659643820,1.16568,4151.3,4151.2,1.16289]
[1758659644119,1.40968,4151.3,4151.2,0.7295]
[1758659644321,1.40968,4151.3,4151.2,1.16289]
[1758659644512,1.16568,4151.3,4151.2,1.16289]
[1758659644819,0.7323,4151.3,4151.2,1.16289]
[1758659645609,1.40968,4151.3,4151.2,1.16289]
[1758659646225,0.9763,4151.3,4151.2,1.16289]
[1758659647623,1.40968,4151.3,4151.2,1.16289]
[1758659648209,0.9763,4151.3,4151.2,1.16289]
[1758659648622,1.40968,4151.3,4151.2,1.16289]
[1758659648825,1.40968,4151.3,4150.8,0.3125]
[1758659648826,0.7719,4151.3,4150.8,0.3125]
[1758659649014,0.7323,4150.9,4150.8,0.5168]
[1758659649722,1.16572,4150.9,4150.8,0.2043]
[1758659649919,1.70812281,4150.9,4150.8,0.2043]
[1758659650120,0.43345,4150.7,4150.4,0.3125]
[1758659650424,0.129,4151.0,4150.4,0.95028]
[1758659650425,0.7323,4150.5,4150.4,0.95028]
[1758659650626,0.7323,4150.5,4150.4,1.16298]
[1758659651920,3.2078,4150.6,4150.5,0.6448]
[1758659652124,3.75075288,4150.6,4150.5,0.8575]
[1758659652333,3.2078,4150.6,4150.5,0.8575]
[1758659652717,3.4122,4150.6,4150.5,0.8575]
[1758659653318,3.7363,4150.6,4150.5,0.8575]
[1758659653920,3.4122,4150.6,4150.5,0.8575]
[1758659654126,0.5285,4150.6,4150.5,0.8575]
[1758659654926,0.7355,4150.6,4150.5,0.8575]
[1758659655626,0.7355,4150.6,4150.5,0.7295]
[1758659655829,0.7355,4150.6,4150.5,0.5168]
[1758659656326,0.7355,4150.6,4150.5,1.15617]
[1758659659428,0.7355,4150.6,4150.5,0.95617]
[1758659660025,0.5609,4151.0,4150.9,0.84152]
[1758659660231,1.78124215,4151.0,4150.9,0.84152]
[1758659660427,0.86015,4150.7,4150.6,0.2022]
[1758659660632,0.7508,4150.7,4149.9,1.0838]
[1758659660829,0.7508,4150.1,4150.0,0.84162]
[1758659661325,0.7508,4150.1,4150.0,0.2022]
[1758659661540,0.7508,4149.7,4149.6,0.4081]
[1758659661726,0.7508,4149.7,4149.6,0.84166]
[1758659662224,1.18435,4149.7,4149.6,0.84166]
[1758659662419,1.18435,4149.7,4149.6,0.43356]
[1758659662420,1.37630393,4149.7,4149.6,0.43356]
[1758659662627,0.94275393,4149.7,4149.6,0.43356]
[1758659662838,0.7508,4149.7,4149.6,0.84166]
[1758659663832,3.5272,4150.0,4149.9,1.16393]
[1758659664033,0.244,4150.1,4150.0,0.7944]
[1758659664531,0.244,4150.3,4149.9,0.43353]
[1758659664736,0.244,4150.3,4150.2,1.1639]
[1758659664930,0.5634,4150.3,4150.2,1.1639]
[1758659665130,0.7856,4150.3,4150.2,1.1639]
[1758659665326,1.0016,4150.3,4150.2,0.6393]
[1758659665528,1.0016,4150.3,4150.2,0.4335]
[1758659665834,0.1236,4150.0,4149.8,3.2078]
[1758659666044,0.8812,4149.5,4149.4,0.4141]
[1758659666227,0.8812,4149.5,4149.4,0.84768]
[1758659666830,0.8812,4149.5,4149.4,1.16398]
[1758659667538,0.8812,4149.5,4149.4,0.84768]
[1758659668825,0.6652,4149.5,4149.4,1.16398]
[1758659669032,3.3314,4150.0,4149.9,0.43353]
[1758659669228,1.08347,4151.3,4149.8,0.4141]
[1758659669229,3.7802,4150.5,4150.4,0.63928]
[1758659669433,4.32286161,4150.5,4150.4,0.84758]
[1758659669636,3.7494,4150.5,4150.4,1.16388]
[1758659669836,4.089,4150.5,4150.4,1.16388]
[1758659670030,4.089,4150.5,4150.4,0.84758]
[1758659670634,0.8812,4150.5,4150.4,0.84758]
[1758659671137,0.8812,4150.5,4150.4,0.63928]
[1758659671532,0.8812,4150.5,4150.4,0.84758]
[1758659671728,0.8812,4150.5,4150.2,0.3163]
[1758659671933,0.5416,4149.1,4149.0,1.16402]
[1758659672141,0.7576,4149.1,4149.0,0.84772]
[1758659674134,0.7576,4149.1,4149.0,0.205]
[1758659674341,0.7576,4149.1,4149.0,0.63862]
[1758659674533,0.7576,4149.1,4149.0,0.205]
[1758659674734,1.19121,4149.1,4149.0,0.205]
[1758659675034,0.5618,4148.5,4148.4,0.63949]
[1758659675339,0.5618,4148.5,4148.4,0.84779]
[1758659675340,0.8812,4148.5,4148.4,0.84779]
[1758659675639,0.8812,4148.5,4148.4,0.2058]
[1758659675829,0.8812,4148.0,4147.9,0.66364888]
[1758659676025,1.12046729,4148.0,4147.9,0.87194888]
[1758659676734,4.32826729,4148.0,4147.9,0.02410888]
[1758659677140,0.2222,4147.2,4147.1,0.44253625]
[1758659677330,0.99686729,4147.2,4147.1,0.85663625]
[1758659677535,0.99686729,4147.2,4147.1,0.44253625]
[1758659677844,0.99686729,4147.2,4147.1,0.64833625]
[1758659679334,0.99686729,4147.2,4147.1,0.44253625]
[1758659679528,0.99686729,4147.2,4147.1,0.00871625]
[1758659680141,0.5618,4146.5,4146.4,3.64169]
[1758659680439,1.12046729,4146.5,4146.4,4.05579]
[1758659680643,1.12046729,4146.5,4146.4,4.37209]
[1758659681048,0.23926729,4146.5,4146.4,9.37209]
[1758659681235,0.23926729,4146.5,4146.4,4.37209]
[1758659681437,0.55866729,4146.5,4146.4,4.37209]
[1758659681635,0.23926729,4146.5,4146.4,4.37209]
[1758659681838,0.55866729,4146.5,4146.4,4.37209]
[1758659682140,0.23926729,4146.5,4146.4,4.37209]
[1758659682337,0.246,4147.2,4147.1,0.43382]
[1758659682645,1.02572752,4147.2,4147.1,1.16422]
[1758659682841,0.23812752,4147.2,4147.1,1.16422]
[1758659683337,0.77972752,4147.2,4147.1,0.84792]
[1758659684243,0.23812752,4147.2,4147.1,1.16422]
[1758659684542,3.2078,4147.9,4146.9,3.2078]
[1758659684543,3.9654,4147.9,4147.2,0.3163]
[1758659684742,0.5618,4147.5,4147.4,0.63958]
[1758659684938,1.11839804,4147.5,4147.4,0.63958]
[1758659685445,1.11839804,4147.5,4147.4,0.84788]
[1758659686438,0.55659804,4147.5,4147.4,1.16418]
[1758659686741,0.23719804,4147.5,4147.4,1.16418]
[1758659686941,0.7576,4147.8,4147.7,0.63956]
[1758659687244,0.99475987,4147.8,4147.7,0.63956]
[1758659687743,0.99475987,4147.8,4147.7,0.84786]
[1758659688449,0.99475987,4147.8,4147.7,1.16416]
[1758659688842,0.23715987,4147.8,4147.7,6.16416]
[1758659690743,0.77875987,4147.8,4147.7,1.16416]
[1758659691042,0.77901333,4147.8,4147.7,0.84786]
[1758659691439,0.77901333,4147.8,4147.7,1.16416]
[1758659692047,0.23741333,4147.8,4147.7,1.16416]
[1758659692850,0.55681333,4147.8,4147.7,1.16416]
[1758659694655,0.98831333,4147.8,4147.7,1.17756]
[1758659695453,0.98831333,4147.8,4147.7,0.84966]
[1758659695845,0.98831333,4147.8,4147.7,0.43376]
[1758659696848,4.19611333,4147.8,4147.7,0.43376]
[1758659697251,4.19611333,4147.8,4147.7,0.64426]
[1758659697557,0.98831333,4147.8,4147.7,1.18226]
[1758659699847,0.98831333,4147.8,4147.7,0.85436]
[1758659700853,0.23741333,4147.8,4147.7,1.18226]
[1758659701050,0.4514,4148.5,4148.4,0.76158]
[1758659701245,0.8795,4148.5,4148.4,0.85428]
[1758659701446,0.8795,4148.5,4147.7,5.37658]
[1758659701447,0.3278,4148.4,4147.8,1.08438]
[1758659701651,0.5466,4147.9,4147.8,0.4206]
[1758659701851,0.5466,4147.9,4147.8,1.18225]
[1758659702156,0.7559,4147.9,4147.8,0.64425]
[1758659702853,0.5466,4147.9,4147.8,1.18225]
[1758659703054,0.7559,4147.9,4147.8,0.64425]
[1758659703756,0.7559,4147.9,4147.8,0.85435]
[1758659703956,0.3278,4147.9,4147.8,1.18225]
[1758659704156,3.4266,4148.2,4148.1,0.85432]
[1758659704362,3.97004771,4148.2,4148.1,0.85432]
[1758659704550,4.17934771,4148.2,4148.1,0.85432]
[1758659704754,4.50714771,4148.2,4148.1,0.85432]
[1758659705150,3.2078,4148.2,4148.1,1.18222]
[1758659705355,0.3424,4148.5,4148.4,0.85428]
[1758659705554,0.88614891,4148.5,4148.4,1.18218]
[1758659705754,0.3424,4148.5,4148.4,1.18218]
[1758659705960,0.2188,4148.5,4148.4,1.18218]
[1758659706352,3.9637,4148.8,4148.7,0.64415]
[1758659706555,4.50730299,4148.8,4148.7,0.64415]
[1758659706856,4.50730299,4148.8,4148.7,0.85425]
[1758659707050,3.9637,4148.8,4148.7,1.18215]
[1758659707255,0.7559,4148.8,4148.7,1.18215]
[1758659707455,0.7559,4148.8,4148.7,0.85425]
[1758659707655,3.7544,4149.3,4149.2,0.8542]
[1758659707866,3.97001916,4149.3,4149.1,0.43361]
[1758659708162,3.97001916,4149.3,4148.4,4.06208]
[1758659708163,0.8825,4148.5,4148.4,4.06208]
[1758659708658,0.6732,4148.0,4147.9,4.06214]
[1758659708865,0.6732,4148.0,4147.9,4.30914]
[1758659709365,0.6732,4148.0,4147.9,4.63704]
[1758659710360,0.8825,4148.0,4147.9,4.06214]
[1758659710561,0.8825,4148.0,4147.9,3.64154]
[1758659711464,0.8825,4148.0,4147.9,4.06214]
[1758659711866,0.8825,4148.0,4147.9,0.43374]
[1758659712966,1.11831203,4148.0,4147.9,0.43374]
[1758659717175,1.11831203,4148.0,4147.9,1.16964]
[1758659717176,0.90901203,4148.0,4147.9,1.16964]
[1758659717364,1.11761203,4148.0,4147.9,0.85964]
[1758659717565,1.55134203,4148.0,4147.9,0.43374]
[1758659717773,1.76967208,4148.0,4147.9,0.43374]
[1758659718271,1.63894208,4148.0,4147.9,0.43374]
[1758659718668,0.303,4147.9,4147.2,1.08453]
[1758659718868,0.7349,4147.1,4147.0,4.06753]
[1758659719075,0.97071203,4147.1,4147.0,0.43383]
[1758659724173,0.97071203,4147.1,4147.0,0.65163]
[1758659724672,0.23581203,4147.1,4147.0,1.16693]
[1758659725275,0.53901203,4147.1,4147.0,1.16693]
[1758659725673,0.4298,4148.0,4147.6,0.4224]
[1758659725970,0.7315,4148.0,4147.9,0.85614]
[1758659726173,0.8544,4148.0,4147.9,0.85614]
[1758659727174,0.8544,4148.0,4147.9,0.43374]
[1758659730375,1.1004,4148.0,4147.9,0.43374]
[1758659730772,0.7315,4147.4,4147.3,0.65]
[1758659731475,0.7315,4147.4,4147.3,0.4338]
[1758659731872,0.1229,4147.5,4145.9,1.72092678]
[1758659732064,0.7315,4146.6,4146.5,0.43388]
[1758659732679,0.7315,4146.6,4146.5,0.65008]
[1758659733581,0.7315,4146.6,4146.5,0.85628]
[1758659737779,0.96185058,4146.6,4146.5,0.85628]
[1758659738885,0.96185058,4146.6,4146.5,0.65008]
[1758659740490,0.8544,4146.0,4145.9,0.4224]
[1758659740686,1.08475058,4146.0,4145.9,0.85635]
[1758659741094,0.5271,4145.3,4145.2,0.85642]
[1758659741279,0.75745058,4145.3,4145.2,0.85642]
[1758659741578,0.75745058,4145.3,4145.2,1.16552]
[1758659742289,0.5271,4145.3,4145.2,1.16552]
[1758659742480,0.75743752,4145.3,4145.2,1.16552]
[1758659743183,0.96183752,4145.3,4145.2,0.85642]
[1758659743386,0.96183752,4145.3,4145.2,0.65022]
[1758659743886,0.53353752,4145.3,4145.2,1.16552]
[1758659744091,0.96183752,4145.3,4145.2,0.85642]
[1758659744288,0.96183752,4145.3,4145.2,0.65022]
[1758659744589,0.96183752,4145.3,4145.2,0.85642]
[1758659745286,0.1229,4145.0,4144.8,0.43405]
[1758659745490,0.5512,4144.0,4143.9,0.43416]
[1758659745792,1.083461,4144.0,4143.9,0.65036]
[1758659745984,1.083461,4144.0,4143.9,0.2162]
[1758659746180,1.083461,4144.0,4143.4,3.5169]
[1758659746181,0.780261,4144.0,4143.7,0.43417]
[1758659746385,0.7315,4143.8,4143.7,0.65037]
[1758659748192,0.7315,4143.8,4143.4,3.5169]
[1758659748193,0.3468,4143.5,4143.4,0.2162]
[1758659748487,0.3468,4143.5,4142.9,3.23193797]
[1758659748488,0.3032,4143.0,4142.9,4.39769797]
[1758659748697,1.1014,4143.5,4143.4,0.4224]
[1758659748892,1.32977849,4143.5,4143.4,0.4224]
[1758659749087,1.32977849,4143.5,4143.4,0.4216]
[1758659749285,1.08277849,4143.5,4143.3,0.43421]
[1758659749490,0.5512,4143.0,4142.9,3.88239797]
[1758659749685,0.8544,4143.0,4142.9,3.88239797]
[1758659749893,0.8544,4143.0,4142.9,3.66619797]
[1758659750184,0.1229,4142.0,4141.3,3.2078]
[1758659750389,0.1229,4142.0,4141.2,0.43443]
[1758659750390,0.3032,4141.3,4141.2,0.43443]
[1758659750594,0.4283,4141.3,4140.8,3.2078]
[1758659750895,0.1229,4142.0,4141.1,0.4224]
[1758659751093,0.227749,4141.9,4141.8,0.43438]
[1758659751297,0.4283,4141.9,4141.7,0.43439]
[1758659751496,0.5512,4142.5,4142.4,0.43431]
[1758659751797,0.4261,4143.0,4142.9,0.43426]
[1758659752096,0.4261,4143.5,4143.4,0.43421]
[1758659752297,0.65356019,4143.5,4143.4,0.43421]
[1758659752490,0.3032,4143.8,4143.7,0.43418]
[1758659752890,0.3032,4143.9,4143.6,0.43418]
[1758659753085,0.1262,4143.5,4143.4,3.64201]
[1758659753392,0.4461,4143.0,4142.9,3.2078]
[1758659753784,5.67336529,4143.0,4142.7,0.43428]
[1758659753992,0.3199,4142.8,4141.6,0.3204]
[1758659754306,0.3199,4141.9,4140.8,0.3204]
[1758659754491,3.334,4141.5,4141.0,0.3204]
[1758659754689,0.3199,4141.4,4141.2,3.2078]
[1758659754893,0.3199,4141.4,4141.2,3.96263]
[1758659755093,0.3199,4141.8,4141.2,3.2078]
[1758659755299,0.3199,4141.8,4141.6,0.75479]
[1758659755499,3.2078,4142.1,4141.7,0.3204]
[1758659755694,0.3199,4142.4,4141.8,0.3204]
[1758659755886,0.3199,4142.2,4141.8,0.75477]
[1758659756094,0.3752,4142.5,4141.8,0.75477]
[1758659756297,0.43433,4142.3,4141.7,3.64218]
[1758659756487,0.3199,4141.8,4141.3,0.43442]
[1758659756687,0.3199,4141.8,4141.6,0.43439]
[1758659756886,0.3199,4141.8,4141.2,3.2078]
[1758659756887,0.3199,4141.9,4141.7,0.43438]
[1758659757193,0.1262,4142.0,4141.5,0.4344]
[1758659757389,0.1262,4142.0,4141.2,3.2078]
[1758659757390,0.43437,4141.9,4141.2,3.2078]
[1758659757586,0.1262,4141.5,4141.4,0.43441]
[1758659757791,0.25,4141.6,4141.5,0.43441]
[1758659758003,3.2078,4142.6,4141.7,0.3204]
[1758659758199,0.47673104,4142.4,4141.7,0.3204]
[1758659758394,0.66106104,4142.3,4141.2,3.5282]
[1758659758601,0.3199,4142.1,4141.2,3.5282]
[1758659758791,0.3172,4142.5,4141.9,0.3204]
[1758659758994,0.22672732,4142.4,4141.7,3.2078]
[1758659759195,0.3199,4141.9,4141.8,0.43437]
[1758659759399,0.5699,4142.3,4142.0,0.43435]
[1758659759702,0.3199,4142.1,4142.0,0.43435]
[1758659760202,0.25,4142.3,4141.8,0.43438]
[1758659760403,0.2268245,4142.2,4142.0,0.43435]
[1758659760606,0.3199,4142.1,4142.0,0.43435]
[1758659761004,0.3199,4142.1,4142.0,0.75475]
[1758659761203,0.25,4142.2,4141.7,3.5282]
[1758659761394,0.1262,4142.0,4141.7,3.2078]
[1758659761700,0.3199,4141.8,4141.7,3.2078]
[1758659761901,0.5467867,4141.8,4141.7,3.2078]
[1758659762402,0.7967867,4141.8,4141.7,3.2078]
[1758659762800,0.2268867,4141.8,4141.7,3.2078]
[1758659762999,0.3199,4142.3,4141.7,3.5282]
[1758659763200,0.1262,4142.0,4141.8,0.43437]
[1758659763501,0.3199,4141.9,4141.8,0.43437]
[1758659763710,0.3199,4141.9,4141.7,3.2078]
[1758659764006,0.1262,4142.0,4141.7,3.2078]
[1758659764203,0.3199,4141.9,4141.7,3.2078]
[1758659764509,0.3199,4142.3,4142.2,0.43432]
[1758659764709,0.54713644,4142.3,4142.2,0.43432]
[1758659764900,0.22723644,4142.3,4142.2,3.96252]
[1758659765205,3.2078,4143.1,4142.9,0.43425]
[1758659765707,3.2078,4143.1,4143.0,0.3204]
[1758659766201,3.2078,4143.6,4143.5,0.7546]
[1758659766402,0.25,4144.1,4143.9,0.43416]
[1758659766608,3.5277,4144.2,4144.1,0.43413]
[1758659766800,3.5277,4144.2,4144.1,0.75453]
[1758659766801,3.2078,4144.2,4144.1,0.75453]
[1758659767008,0.1262,4144.0,4143.5,3.2078]
[1758659767198,3.5277,4144.2,4143.7,1.08543]
[1758659767408,0.3199,4144.6,4144.5,0.43409]
[1758659767904,0.3199,4144.6,4143.8,0.251]
[1758659768100,0.3199,4144.4,4143.6,1.08547]
[1758659768305,0.1262,4144.5,4143.5,3.4588]
[1758659768607,0.3199,4144.4,4144.3,0.43411]
[1758659769001,0.75403,4144.2,4143.5,3.2078]
[1758659769308,0.1262,4144.5,4143.5,3.2078]
[1758659769309,0.4461,4144.0,4143.9,0.43415]
[1758659769904,0.1262,4144.0,4143.7,0.43417]
[1758659770113,0.3199,4143.9,4143.8,0.43416]
[1758659771904,0.3301,4144.4,4143.8,0.3136]
[1758659772102,0.3301,4144.6,4144.3,0.74771]
[1758659772301,0.3772,4145.0,4144.4,0.4341]
[1758659772502,0.4341,4144.4,4144.1,0.43413]
[1758659772702,0.4591,4144.5,4144.4,0.4341]
[1758659772908,0.3301,4144.5,4144.4,0.4341]
[1758659773104,0.3301,4144.9,4144.6,0.43408]
[1758659773303,3.2078,4145.2,4144.8,0.43406]
[1758659773504,0.4591,4145.0,4144.8,0.43406]
[1758659773712,3.5379,4145.2,4145.0,0.43404]
[1758659773910,3.2078,4145.2,4145.1,0.3136]
[1758659774112,3.5379,4145.7,4145.1,1.39866]
[1758659774306,0.54671121,4145.6,4145.3,0.3136]
[1758659774612,3.5379,4145.7,4145.3,0.434]
[1758659774613,1.00581121,4145.5,4145.3,0.434]
[1758659774818,0.3301,4145.4,4145.3,0.434]
[1758659775314,0.129,4145.5,4144.6,3.2078]
[1758659775515,0.129,4145.5,4144.5,0.3136]
[1758659775516,0.3301,4144.9,4144.8,0.43406]
[1758659776114,0.251,4145.4,4144.8,0.74766]
[1758659776315,42.90423279,4146.5,4145.8,0.43395]
[1758659776316,3.2078,4146.1,4145.8,0.43395]
[1758659776523,3.2078,4146.1,4145.0,0.0835]
[1758659776524,3.2078,4146.1,4146.0,0.43394]
[1758659776821,3.5379,4146.1,4146.0,0.43394]
[1758659777020,3.2078,4146.1,4146.0,0.43394]
[1758659777317,0.24363153,4146.1,4146.0,0.74754]
[1758659777519,0.24363153,4146.1,4146.0,5.81234]
[1758659777918,0.24363153,4146.1,4146.0,6.06434]
[1758659779019,0.57373153,4146.1,4146.0,0.43394]
[1758659779624,0.24363153,4146.1,4146.0,0.74754]
[1758659780311,0.24363153,4146.1,4146.0,0.43394]
[1758659780312,0.57373153,4146.1,4146.0,0.43394]
[1758659782026,0.57373153,4146.1,4146.0,0.74754]